[Event "ESP-ch U2000 2024"]
[Site "Albacete"]
[Date "2024.09.01"]
[Round "9.3"]
[White "Penarrubia Blasco, Jose Alfredo"]
[Black "Perez Gonzalez, Daniel"]
[Result "0-1"]
[ECO "B15"]
[WhiteElo "1891"]
[BlackElo "1981"]
[Annotator "TA"]
[PlyCount "101"]
[EventDate "2024.08.27"]
[EventType "swiss"]
[EventCountry "ESP"]
[SourceTitle "playchess.com"]
[Source "ChessBase"]
[SourceQuality "1"]
[TimeControl "5400+30"]

{[%evp 12,101,31,-12,25,4,24,36,38,24,34,21,22,0,0,-19,-22,-12,30,34,33,52,36,0,0,0,0,0,26,-35,45,29,37,17,26,21,32,-7,0,0,16,-28,-35,-55,-50,-43,-8,-11,-14,-9,-13,-117,-107,-125,-16,-23,0,0,0,-23,-29,-67,-61,-45,-8,-47,-35,-53,-52,-70,-49,-63,-28,-133,-62,-62,-62,-64,-75,-71,-71,-193,-193,-358,-351,-487,-483,-422,-413,-314,0,-708]} 1. e4 {[%emt 0:01:37]} c6 {[%emt 0:00:21]} 2. d4 {[%emt 0:01:26]} d5 {[%emt 0:00:05]} 3. Nc3 {[%emt 0:00:39]} dxe4 {[%emt 0:00:05]} 4. Nxe4 {[%emt 0:00:06]} Nf6 {[%emt 0:00:06]} 5. Ng3 {[%emt 0:02:37]} h5 {[%emt 0:00:14]} 6. h4 {[%emt 0:03:15]} Bg4 {[%emt 0:00:41]} 7. Be2 {[%emt 0:00:13]} Bxe2 {[%emt 0:02:11]} 8. N1xe2 {[%emt 0:00:18]} e6 {[%emt 0:00:52]} 9. Bg5 {[%emt 0:01:20]} Bd6 {[%emt 0:13:00] White is slightly better.} 10. c3 {[%emt 0:06:48]} Qc7 {[%emt 0:03:16]} 11. Qd2 {[%emt 0:02:09]} Nbd7 {[%emt 0:01:55][%cal Bb8d7,Bd7b6,Bb6d5,Bd5f4][%mdl 32]} 12. Nf4 {[%emt 0:01:21]} Nb6 {[%emt 0:01:47]} 13. b3 {[%emt 0:01:15] Inhibits Nc4.} Nbd5 {[%emt 0:00:59]} 14. Nfe2 {[%emt 0:03:02]} Nd7 {[%emt 0:07:36]} 15. Qd3 {[%emt 0:01:16]} Nf4 {[%emt 0:01:11]} 16. Nxf4 {[%emt 0:04:00]} Bxf4 {[%emt 0:00:02]} 17. Bxf4 {[%emt 0:00:26]} Qxf4 {[%emt 0:00:11]} 18. Qe4 {[%emt 0:00:51]} Qd6 {[%emt 0:05:10]} 19. O-O {[%emt 0:04:43]} O-O-O {[%emt 0:04:18]} 20. a4 {[%emt 0:00:33]} (20. Qf3 $11 Nf6 21. Rae1) 20... Rdg8 {[%emt 0:04:42]} (20... g5 $15) 21. f4 {[%emt 0:05:34]} Nf6 {[%emt 0:03:27]} 22. Qe2 {[%emt 0:04:24]} Qd8 {[%emt 0:02:55]} 23. Qe1 {[%emt 0:01:56]} Rh6 {[%emt 0:03:05]} 24. b4 {[%emt 0:02:20][%cal Bb3b4,Bb4b5][%mdl 32]} Qd5 {[%emt 0:05:29]} 25. b5 {[%emt 0:08:21]} c5 {[%emt 0:00:54]} 26. dxc5 {[%emt 0:00:22]} Qxc5+ {[%emt 0:00:25]} 27. Qf2 {[%emt 0:03:34]} Qxf2+ {[%emt 0:00:48]} (27... Qxc3 $2 28. Qxa7 Rg6 29. Ne2 $18) 28. Kxf2 {[%emt 0:00:56]} Rg6 {[%emt 0:03:49] Black wants to play ...Rg4.} 29. Kf3 $1 {[%emt 0:09:57]} Rg4 {[%emt 0:05:11]} 30. Nxh5 {[%emt 0:03:32]} Rxh4 {[%emt 0:01:02]} 31. Ng3 {[%emt 0:02:57]} (31. Nxf6 $11 {was the only way to keep the balance.} gxf6 32. Rh1) 31... g5 $17 {[%emt 0:06:13]} 32. Ne2 {[%emt 0:06:43]} g4+ {[%emt 0:04:01]} ({Better is} 32... gxf4 $17 {And now ...e5 would win.} 33. Nxf4 e5) 33. Kf2 $11 {[%emt 0:03:01]} Rh2 {[%emt 0:02:12]} 34. Ng3 {[%emt 0:01:15] Repels Ne4+} Nd5 {[%emt 0:02:38]} 35. Ne2 {[%emt 0:02:44]} Rd8 {[%emt 0:02:00]} 36. Rh1 {[%emt 0:01:27]} Rxh1 {[%emt 0:02:09]} 37. Rxh1 $15 {[%emt 0:00:03][%mdl 4096] Endgame. KRN-KRN} Nf6 {[%emt 0:00:09] Dodges Rh7} 38. Rh6 {[%emt 0:01:32]} Ne4+ {[%emt 0:01:30]} 39. Ke3 {[%emt 0:01:34]} Nc5 {[%emt 0:00:05]} 40. Rh7 $1 {[%emt 0:00:54]} Rd3+ {[%emt 0:00:53]} (40... Nxa4 $6 41. Rxf7 Rd5 42. Rg7 $14) 41. Kf2 {[%emt 0:00:02]} f5 {[%emt 0:01:40]} 42. Rh6 {[%emt 0:01:10]} (42. a5 $11 {remains equal.}) 42... g3+ {[%emt 0:04:47]} (42... Nxa4 43. Rxe6 Nb2 (43... Nxc3 44. Nxc3 g3+ 45. Ke2 $11) 44. Nd4 $14) (42... a5 $17 {[%cal Oc8c7] White must now prevent ...Kc7!} 43. bxa6 bxa6 (43... Nxa4 $2 44. a7 $18)) 43. Ke1 $1 {[%emt 0:01:40]} ({But not} 43. Nxg3 Rxc3 (43... Nxa4 44. Rxe6 Kd7 45. Rg6 $16) 44. Ne2 Ra3 $17) 43... Nxa4 {[%emt 0:01:47]} 44. Rxe6 {[%emt 0:00:09]} Nxc3 {[%emt 0:00:03]} 45. Nxc3 {[%emt 0:00:29]} Rxc3 {[%emt 0:00:01] KR-KR} 46. Re5 {[%emt 0:00:19]} (46. b6 $17 axb6 47. Rxb6) 46... Rc2 $19 {[%emt 0:00:10]} 47. Kf1 $2 {[%emt 0:00:03] [#]} (47. Rxf5 Rxg2 48. Rc5+ Kb8 49. Rc3) 47... Rf2+ {[%emt 0:00:05]} 48. Kg1 {[%emt 0:00:03]} Rxf4 {[%emt 0:00:32]} 49. Re3 {[%emt 0:01:22]} Rg4 {[%emt 0:02:09]} 50. Kf1 {[%emt 0:00:35]} Rf4+ $2 {[%emt 0:00:58] [#]} (50... Kc7 $19 {Strongly threatening ...Rf4+.} 51. Rf3 Rg5) 51. Ke2 $2 {[%mdl 8192] Weighted Error Value: White=0.28 (precise) /Black=0.24 (precise) .  Loses game:     	White=1     	---        Missed win:     	---       	Black=1      Mistake:       	White=5     	Black=3      Inaccurate:     	White=6     	Black=5      OK:         	White=6     	Black=11     Best:        	White=2     	Black=5      Strong:       	White=3     	---} (51. Kg1 $11 Rb4 52. Rxg3) 0-1

[Event "ESP-ch U2000 2024"]
[Site "Albacete"]
[Date "2024.09.01"]
[Round "9.4"]
[White "Zubizarreta Landera, Denis"]
[Black "Sala Esquiva, Miguel"]
[Result "1-0"]
[ECO "E73"]
[WhiteElo "1919"]
[BlackElo "1967"]
[Annotator "TA"]
[PlyCount "105"]
[EventDate "2024.08.27"]
[EventType "swiss"]
[EventCountry "ESP"]
[SourceTitle "playchess.com"]
[Source "ChessBase"]
[SourceQuality "1"]
[TimeControl "5400+30"]

{[%evp 20,105,69,68,72,92,87,0,158,152,139,83,199,213,229,222,257,246,264,264,262,260,259,188,559,473,473,207,404,270,411,274,275,277,275,269,266,281,483,375,498,341,391,335,331,274,356,231,331,0,367,324,307,232,312,308,770,357,932,231,649,691,904,647,738,543,838,657,1023,611,858,488,1445,748,29991,1650,1245,1283,29997,29997,29997,566,29984,29985,29997,29998,29998,29993]} 1. d4 {[%emt 0:05:59]} Nf6 {[%emt 0:00:11]} 2. c4 {[%emt 0:00:27]} g6 {[%emt 0:00:08]} 3. Nc3 {[%emt 0:00:04]} Bg7 {[%emt 0:00:04]} 4. e4 {[%emt 0:00:06]} d6 {[%emt 0:00:04]} 5. Be2 {[%emt 0:00:06]} O-O {[%emt 0:00:45]} 6. Bg5 {[%emt 0:00:14]} e5 {[%emt 0:05:45]} 7. d5 {[%emt 0:00:12]} Nbd7 {[%emt 0:03:45]} 8. Qd2 {[%emt 0:02:06]} Nc5 {[%emt 0:14:05]} 9. f3 {[%emt 0:00:07]} a5 {[%emt 0:00:26]} 10. g4 {[%emt 0:01:20]} h6 {[%emt 0:05:44]} 11. Be3 $1 {[%emt 0:00:33]} (11. Bxh6 $2 Nfxe4 12. Nxe4 Qh4+ 13. Kd1 Bxh6 $19) 11... Bd7 {[%emt 0:07:22]} 12. h4 {[%emt 0:01:06]} (12. Bxh6 $2 Nfxe4 13. Nxe4 Qh4+ 14. Kd1 Bxh6 $19) 12... h5 {[%emt 0:01:13][%cal Rh5g4]} 13. Bg5 {[%emt 0:22:59]} ({White should try} 13. g5 $16 Ne8 14. Nh3) 13... Kh7 $2 {[%emt 0:16:38]} (13... hxg4 $11 14. h5 Qe8 (14... gxh5 15. O-O-O $16)) 14. gxh5 $16 {[%emt 0:05:19]} gxh5 {[%emt 0:00:08]} 15. Bf1 {[%emt 0:02:01]} (15. Nh3 $142) 15... a4 {[%emt 0:04:11] [#]} (15... Qe8 $16) 16. Nge2 $1 $18 {[%emt 0:01:06]} Qe8 {[%emt 0:07:40]} 17. Ng3 {[%emt 0:00:31]} Ng8 {[%emt 0:03:09]} 18. Nxh5 {[%emt 0:23:09]} f5 {[%emt 0:02:22][%cal Bf7f5,Bf5f4][%mdl 32]} 19. Nxg7 {[%emt 0:05:44]} Kxg7 {[%emt 0:00:07]} 20. O-O-O {[%emt 0:00:13]} f4 {[%emt 0:04:24]} 21. Bh3 {[%emt 0:00:19]} Nh6 $2 {[%emt 0:03:07]} (21... Bxh3 {is tougher.} 22. Rxh3 Kh8) 22. Rdg1 {[%emt 0:01:19]} Kh7 {[%emt 0:00:39]} 23. Qh2 {[%emt 0:07:03]} (23. Bxh6 $142 Kxh6 24. Bxd7 Nxd7 25. Kc2) 23... a3 $2 {[%emt 0:03:33]} (23... Bxh3 24. Bxh6 (24. Qxh3 Nd3+ 25. Kc2 Nf2 $16) 24... Kxh6) 24. b3 {[%emt 0:00:14]} Qh5 {[%emt 0:02:37]} (24... Bxh3 $142 25. Bxh6 (25. Qxh3 Nd3+ 26. Kc2 Nf2 $16) 25... Rg8 26. Qxh3 Kxh6) 25. Qe2 {[%emt 0:00:52]} Bxh3 {[%emt 0:01:41]} 26. Rxh3 {[%emt 0:00:01]} Rg8 {[%emt 0:00:49]} 27. Rh2 {[%emt 0:03:44]} Rg7 {[%emt 0:03:00]} 28. Rhg2 {[%emt 0:01:02]} Rf7 $2 {[%emt 0:04:14]} (28... Nf7 29. Kc2 Rag8) 29. Kc2 {[%emt 0:01:00]} c6 {[%emt 0:01:38]} 30. Rd1 {[%emt 0:00:28] Threatens to win with dxc6.} Rd7 {[%emt 0:01:24]} 31. Qf1 {[%emt 0:00:30]} Rg8 {[%emt 0:00:57]} 32. Qf2 {[%emt 0:02:37]} Rg6 {[%emt 0:02:15]} 33. Rh2 {[%emt 0:02:02]} Kg8 {[%emt 0:01:09]} (33... Na6 {was called for.} 34. Na4 Rc7) 34. Rg2 {[%emt 0:01:46]} Kh7 {[%emt 0:00:07]} 35. Rb1 {[%emt 0:03:07]} Na6 {[%emt 0:00:53]} 36. Rbg1 {[%emt 0:01:07] And now Bxh6 would win.} Nb4+ {[%emt 0:00:24]} 37. Kb1 {[%emt 0:00:01]} cxd5 $2 {[%emt 0:01:09]} (37... Rdg7 38. Rf1 cxd5) 38. exd5 {[%emt 0:00:34]} (38. Bxh6 $142 Rxh6 39. exd5 (39. Nxd5 Nxd5 40. cxd5 Qxh4 $18)) 38... b5 $2 {[%emt 0:00:42]} (38... Nf5 39. Rg4 Ne3) 39. Nxb5 $2 {[%emt 0:01:01]} (39. Bxh6 Rxh6 40. Qe2 (40. Nxb5 Qf5+ 41. Ka1 Rg6 $16) 40... Qf5+ 41. Ne4) 39... Ng8 $2 {[%emt 0:00:33]} (39... Nf5 40. Nxa3 Ne3) 40. Qd2 {[%emt 0:00:29]} Na6 {[%emt 0:00:24]} 41. Qe2 {[%emt 0:00:55][%cal Oe2c2] [#] Black must now prevent Qc2!} Nc5 {[%emt 0:00:20]} 42. Rg4 {[%emt 0:02:05]} Nf6 {[%emt 0:00:49]} 43. Bxf6 {[%emt 0:01:00]} Rxf6 {[%emt 0:00:30]} 44. Nc3 {[%emt 0:00:05] Qg2 is the strong threat.} Rb7 {[%emt 0:00:42]} 45. Qc2+ {[%emt 0:00:09]} Kh6 {[%emt 0:00:40]} (45... Qf5 $142 46. Qxf5+ Rxf5) 46. Rg8 {[%emt 0:00:13] White wants to mate with Rh8+.} e4 {[%emt 0:00:21]} 47. Nxe4 {[%emt 0:00:17]} (47. Qg2 $142 Rff7 48. fxe4 (48. Nxe4 Qf5 $18) 48... Na4 49. Rh8+ (49. Nxa4 Rfe7 50. Rh8+ Rh7 51. Qg8 Qd1+ 52. Rxd1 Rxh8 53. Qxh8+ Kg6 54. Rg1+ Kf7 55. Rg7+ Kf6 56. Rg8+ Kf7 57. Qg7#) 49... Rh7 50. Qg8 (50. Nxa4 Rxh8 51. c5 f3 $14) (50. Rxh7+ Rxh7 51. Qg8 Nxc3+ 52. Ka1 Qd1+ 53. Rxd1 Rg7 54. Qh8+ Kg6 55. Rg1+ Kf7 56. Rxg7+ Kf6 57. Rh7+ Kg6 58. Qg7#) 50... Rxb3+ 51. axb3 (51. Ka1 Rb1+ 52. Rxb1 Rxh8 53. Qxh8+ Kg6 54. Rg1+ Kf7 55. Rg7+ Kf6 56. Rh7+ Kg6 57. Qg7#) 51... Nxc3+ 52. Ka1) 47... Nxe4 48. Qxe4 {[%emt 0:00:02] Threatening mate with Rh8+.} Rf5 {[%emt 0:01:09]} 49. Rh8+ {[%emt 0:00:41]} Rh7 {[%emt 0:00:02]} 50. Rxh7+ {[%emt 0:00:00]} Kxh7 {[%emt 0:00:13]} 51. Rg5 {[%emt 0:00:03] White mates.} Qxh4 {[%emt 0:00:19]} 52. Qxf5+ {[%emt 0:00:01]} Kh8 {[%emt 0:00:24]} 53. Rh5+ {[%emt 0:00:01] Weighted Error Value: White=1.37/Black=0.85.  Mistake:       	White=4     	Black=10     Inaccurate:     	White=4     	Black=5      OK:         	White=8     	Black=7      Best:        	White=1     	---} 1-0

[Event "ESP-ch U2000 2024"]
[Site "Albacete"]
[Date "2024.09.01"]
[Round "9.5"]
[White "Sanjuan Garcia, Miguel"]
[Black "Pujante Martinez, Rafael"]
[Result "1/2-1/2"]
[ECO "C44"]
[WhiteElo "1963"]
[BlackElo "1903"]
[Annotator "TA"]
[PlyCount "214"]
[EventDate "2024.08.27"]
[EventType "swiss"]
[EventCountry "ESP"]
[SourceTitle "playchess.com"]
[Source "ChessBase"]
[SourceQuality "1"]
[TimeControl "5400+30"]

{[%evp 104,213,-597,-5413,-8,-29942,-29943,-29945,-29945,-29950,0,-29944,0,-29943,-29950,-29961,-29962,-29965,-29965,-29960,-29959,-29947,-8,-8,-8,-29982,-29983,-29985,-29986,-29986,-29987,-29987,-29988,-29988,-29989,-29989,0,0,0,0,0,0,0,0,0,0,0,0,0,0,0,0,0,0,0,0,0,0,0,0,0,0,0,0,0,0,0,0,0,0,0,0,0,0,0,0,0,0,0,0,0,0,0,0,0,0,0,0,0,0,0,0,0,0,0,0,0,0,0,0,0,0,0,0,0,0,0,0,0,0,0,0]} 1. e4 e5 {[%emt 0:01:22]} 2. Nf3 {[%emt 0:00:25]} Nc6 {[%emt 0:00:06]} 3. d4 {[%emt 0:00:18]} exd4 {[%emt 0:00:16]} 4. Nxd4 {[%emt 0:00:02]} Qf6 {[%emt 0:00:14]} 5. c3 {[%emt 0:00:39]} Bc5 {[%emt 0:00:19]} 6. Be3 {[%emt 0:00:02]} Qg6 {[%emt 0:00:16]} 7. f3 {[%emt 0:07:39] C45: Scotch Game.} Nf6 {[%emt 0:05:09]} 8. Nf5 {[%emt 0:06:37]} Bxe3 {[%emt 0:11:37]} 9. Nxe3 {[%emt 0:00:02]} O-O {[%emt 0:02:24]} 10. Na3 $146 {[%emt 0:02:25]} ({Predecessor:} 10. c4 d6 11. Nc3 Ne8 12. Bd3 Qg5 13. Qd2 Qc5 14. Ncd5 a5 15. Rc1 Ne5 16. Be2 {1-0 Kolev,A (2569)-Radulski,J (2508) BUL-chT 57th 2007 (4.2)}) 10... d5 {[%emt 0:18:49]} 11. exd5 {[%emt 0:07:08]} Qg5 {[%emt 0:13:04]} 12. Nac2 {[%emt 0:09:20]} Re8 {[%emt 0:09:00]} 13. Kf2 {[%emt 0:07:41]} Ne7 {[%emt 0:05:17]} 14. c4 {[%emt 0:14:01]} Nf5 {[%emt 0:08:52]} 15. Qc1 {[%emt 0:01:29]} Nxe3 {[%emt 0:01:46]} 16. Nxe3 {[%emt 0:00:10]} Qf4 {[%emt 0:03:13]} 17. Nc2 {[%emt 0:07:18]} Qd6 {[%emt 0:01:35]} 18. g3 {[%emt 0:03:48]} c6 {[%emt 0:01:21]} 19. dxc6 {[%emt 0:03:48]} Qxc6 {[%emt 0:00:02]} 20. Bd3 {[%emt 0:02:04]} b6 {[%emt 0:02:53]} 21. Qf4 {[%emt 0:08:58]} Qc5+ {[%emt 0:00:01]} 22. Kg2 {[%emt 0:00:19]} Be6 {[%emt 0:04:49]} 23. b3 {[%emt 0:02:49]} Rad8 {[%emt 0:00:28]} 24. Rad1 {[%emt 0:00:14]} Qa5 {[%emt 0:00:41]} 25. Nd4 {[%emt 0:04:43]} Nh5 {[%emt 0:04:31]} 26. Qd2 {[%emt 0:00:35]} Qxd2+ {[%emt 0:03:41]} 27. Rxd2 {[%emt 0:00:01]} Bc8 {[%emt 0:00:23]} 28. Nc6 {[%emt 0:02:14]} Rd7 {[%emt 0:00:20]} 29. Rhd1 {[%emt 0:00:42]} g6 {[%emt 0:01:11]} 30. Kf2 {[%emt 0:02:24]} Bb7 {[%emt 0:01:13]} 31. Nxa7 {[%emt 0:01:15]} Red8 {[%emt 0:00:14]} 32. Nb5 {[%emt 0:02:11]} Ng7 {[%emt 0:00:02]} 33. Nc3 {[%emt 0:00:42]} Ne6 {[%emt 0:00:10]} 34. Ne4 {[%emt 0:02:49]} Kg7 {[%emt 0:00:42]} 35. Ke3 {[%emt 0:00:21]} Nd4 {[%emt 0:00:29]} 36. Bb1 {[%emt 0:01:14]} Nf5+ {[%emt 0:01:00]} 37. Kf4 {[%emt 0:00:08]} Nd4 {[%emt 0:00:46]} 38. Ke3 {[%emt 0:00:24]} Nf5+ {[%emt 0:00:01]} 39. Kf2 {[%emt 0:00:02]} Nd4 {[%emt 0:00:01]} 40. g4 {[%emt 0:00:25]} f5 {[%emt 0:00:28]} 41. gxf5 {[%emt 0:00:46]} gxf5 {[%emt 0:00:01]} 42. Ke3 {[%emt 0:02:00]} fxe4 {[%emt 0:01:11]} 43. Bxe4 {[%emt 0:00:20]} Bxe4 {[%emt 0:00:58]} 44. fxe4 {[%emt 0:00:09]} Nc2+ {[%emt 0:00:22]} 45. Ke2 {[%emt 0:00:35]} Rxd2+ {[%emt 0:01:06]} 46. Rxd2 {[%emt 0:00:01]} Rxd2+ {[%emt 0:00:27]} 47. Kxd2 {[%emt 0:00:01]} Nd4 {[%emt 0:00:17]} 48. Ke3 {[%emt 0:00:44]} Nc6 {[%emt 0:00:01]} 49. Kf4 {[%emt 0:01:06]} Kf6 {[%emt 0:00:10]} 50. a3 {[%emt 0:01:47]} Na5 {[%emt 0:00:08]} 51. e5+ {[%emt 0:00:10]} Ke6 {[%emt 0:00:23]} 52. c5 {[%emt 0:00:37]} b5 {[%emt 0:00:53]} (52... Nxb3 53. cxb6 Na5 54. Kg5 $11) 53. b4 {[%emt 0:00:22] [#]} Nc6 $2 {[%emt 0:00:48]} ({Black should try} 53... Nc4 $1 $19 {[%cal Rc4e5]} 54. c6 Nxa3 (54... Nxe5 $2 55. c7 $19)) 54. Kg5 $2 {[%emt 0:00:48][%mdl 8192]} (54. h4 $11 Ne7 (54... Nxe5 $2 55. Kg5 $19) 55. h5) 54... Nxe5 {[%emt 0:00:42]} 55. h4 {[%emt 0:00:26]} Nf7+ {[%emt 0:01:07]} 56. Kf4 {[%emt 0:00:00]} Ne5 {[%emt 0:00:31]} 57. Kg5 $1 {[%emt 0:00:15]} Nf7+ {[%emt 0:00:01]} 58. Kf4 $1 {[%emt 0:00:00]} h6 {[%emt 0:00:39]} 59. Ke4 {[%emt 0:00:24]} Ne5 {[%emt 0:00:43]} 60. h5 {[%emt 0:01:37]} Ng4 {[%emt 0:00:30]} 61. Kd4 {[%emt 0:00:39]} Nf6 {[%emt 0:00:40]} 62. c6 {[%emt 0:00:26]} Nd5 $2 {[%emt 0:00:29]} (62... Kd6 63. c7 Kxc7 64. Ke5 Nxh5 65. Ke6 Ng7+ 66. Ke5 h5 67. Ke4 Kc6 68. Ke3 Kd5 69. Kd3 h4 70. Ke2 h3 71. Kf2 Ne6 72. Kg3 Ng5 73. Kh2 Kd4 74. a4 bxa4 75. b5 Kc5 76. Kg1 Kxb5 (76... a3 77. Kf2 a2 78. b6 Kxb6 79. Kg3 a1=Q 80. Kf4 h2 81. Kxg5 h1=Q 82. Kf5 Qf3+ 83. Ke6 Qaf6+ 84. Kd7 Q3c6#) 77. Kf2 a3 78. Kg3 a2 79. Kg4 a1=Q (79... a1=B 80. Kg3 Be5+ 81. Kh4 h2 82. Kxg5 h1=Q 83. Kf5 Qd5 84. Kg4 Qe4+ 85. Kg5 Bd4 86. Kh5 Qf5+ 87. Kh6 Qg4 88. Kh7 Qg7#) (79... h2 80. Kxg5 a1=Q 81. Kf5 h1=Q 82. Kf4 Qd4+ 83. Kf5 Qh7+ 84. Kg5 Qdh4#) 80. Kf4 h2 81. Kxg5 h1=Q (81... h1=R 82. Kf5 Qd4 83. Ke6 Rf1 84. Ke7 Kc6 85. Ke8 Qd7#) 82. Kf5 Qf3+ (82... Qh5+ $2 83. Ke4 Qae5+ 84. Kd3 Qhe2#) 83. Ke6 Qaf6+ 84. Kd7 Q3c6#) 63. Kc5 $11 {[%emt 0:00:10]} Nc7 {[%emt 0:00:02]} 64. a4 $2 {[%emt 0:00:10][%mdl 8192]} (64. Kb6 $11 Kd6 65. Kb7) 64... bxa4 {[%emt 0:00:15]} 65. b5 {[%emt 0:00:00]} a3 {[%emt 0:00:43]} 66. b6 {[%emt 0:00:07]} Na6+ {[%emt 0:00:21]} 67. Kb5 {[%emt 0:00:10]} a2 {[%emt 0:00:18]} 68. Kxa6 {[%emt 0:00:14]} a1=Q+ {[%emt 0:00:06]} ({Worse is} 68... a1=B 69. c7 Kd7 70. Kb7 Kd6 71. c8=Q (71. c8=R Bb2 $18) 71... Kd5 72. Qc6+ Ke5 73. Ka6 (73. Qxh6 Ke4 74. Kc6 Bd4 75. Qe6+ Kd3 76. b7 Ba7 77. h6 Bb8)) 69. Kb7 {[%emt 0:00:04]} Kd6 $2 {[%emt 0:01:38]} (69... Qc3 {mates} 70. c7 Kd7 71. Ka7 Qc6 72. Ka6 Kc8 73. Ka5 Qc4 (73... Kb7 {is a self mate.} 74. Kb4 Kxb6 75. Ka3 Kb5 76. c8=Q Qxc8 77. Kb3 Qc4+ 78. Ka3 Qb4+ 79. Ka2 Ka4 80. Ka1 Kb3 81. Kb1 Qe1#) 74. b7+ Kxc7 75. b8=R Kxb8 76. Kb6 Qd5 77. Ka6 Kc7 78. Ka7 Qb7#) 70. c7 $11 {[%emt 0:00:03]} Qh1+ {[%emt 0:00:02]} 71. Kb8 {[%emt 0:00:38]} Qc6 {[%emt 0:01:07]} (71... Qxh5 $2 {too greedy.} 72. c8=Q $18 (72. c8=R $2 Qe5 $19)) 72. c8=Q {[%emt 0:00:29]} Qxb6+ {[%emt 0:00:23]} 73. Qb7 {[%emt 0:00:56]} Qd8+ {[%emt 0:00:30]} 74. Qc8 {[%emt 0:01:12]} Qg5 {[%emt 0:00:33]} 75. Qe8 {[%emt 0:00:53]} Qf4 {[%emt 0:00:37]} 76. Ka7 {[%emt 0:00:47]} Qf6 {[%emt 0:00:22]} 77. Kb6 {[%emt 0:01:12]} Qb2+ {[%emt 0:00:24]} 78. Qb5 {[%emt 0:00:19]} Qd4+ {[%emt 0:00:31]} 79. Ka6 {[%emt 0:00:43]} Qf6 {[%emt 0:00:36]} 80. Qe8 {[%emt 0:00:26]} Kc7+ {[%emt 0:00:28]} 81. Ka5 {[%emt 0:00:12]} Qg5+ {[%emt 0:00:30]} 82. Kb4 {[%emt 0:00:24]} Kd6 {[%emt 0:00:08]} 83. Qg6+ {[%emt 0:01:32]} Ke5 {[%emt 0:00:25]} 84. Qxg5+ {[%emt 0:00:35]} hxg5 {[%emt 0:00:05]} 85. Kc3 {[%emt 0:00:10]} Kf5 {[%emt 0:00:33]} 86. Kd3 $1 {[%emt 0:00:23]} g4 {[%emt 0:00:12]} 87. Ke3 {[%emt 0:00:48]} Kg5 {[%emt 0:00:10]} 88. h6 {[%emt 0:00:04]} Kxh6 {[%emt 0:00:02]} 89. Kf4 {[%emt 0:00:03]} Kh5 {[%emt 0:00:18]} 90. Kg3 {[%emt 0:00:01]} Kg5 91. Kg2 Kh4 {[%emt 0:02:13]} 92. Kh2 {[%emt 0:00:01]} Kh5 {[%emt 0:00:06]} 93. Kg3 {[%emt 0:00:05]} Kg5 {[%emt 0:00:06]} 94. Kg2 {[%emt 0:00:00]} Kf4 {[%emt 0:01:03]} 95. Kf2 {[%emt 0:00:02]} g3+ {[%emt 0:00:08]} 96. Kg2 {[%emt 0:00:04]} Kg4 {[%emt 0:00:14]} 97. Kg1 {[%emt 0:00:01]} Kh3 {[%emt 0:00:40]} 98. Kh1 {[%emt 0:00:02]} Kh4 {[%emt 0:00:08]} 99. Kg2 {[%emt 0:00:08]} Kg4 {[%emt 0:00:13]} (99... Kg5 {simplifies} 100. Kxg3 Kf5 101. Kf3 Kg6) 100. Kg1 {[%emt 0:00:01]} Kf3 {[%emt 0:00:15]} (100... Kh4 $5) 101. Kf1 {[%emt 0:00:02]} Ke3 {[%emt 0:00:15]} 102. Kg2 {[%emt 0:00:26]} Kf4 {[%emt 0:00:24]} 103. Kg1 {[%emt 0:00:41]} Kg5 {[%emt 0:00:19]} (103... Ke3 $5) 104. Kg2 {[%emt 0:00:49]} Kh4 {[%emt 0:00:20]} (104... Kf4 $5) 105. Kg1 {[%emt 0:00:39]} Kh3 {[%emt 0:00:07]} (105... Kg4 $5) 106. Kh1 {[%emt 0:00:04]} g2+ {[%emt 0:00:04]} 107. Kg1 {[%emt 0:00:02]} Kg3 1/2-1/2

[Event "ESP-ch U2000 2024"]
[Site "Albacete"]
[Date "2024.09.01"]
[Round "9.6"]
[White "Martin Cantizano, David"]
[Black "Duller Llopis, Jouke"]
[Result "1-0"]
[ECO "C00"]
[WhiteElo "1864"]
[BlackElo "1928"]
[Annotator "TA"]
[PlyCount "27"]
[EventDate "2024.08.27"]
[EventType "swiss"]
[EventCountry "ESP"]
[SourceTitle "playchess.com"]
[Source "ChessBase"]
[SourceQuality "1"]
[TimeControl "5400+30"]

{[%evp 9,27,1,-14,-23,39,-44,-45,-65,-31,-22,116,-37,778,793,783,787,790,789,1762,1818]} 1. e4 {[%emt 0:00:04]} e6 {[%emt 0:03:12]} 2. Qe2 {[%emt 0:00:06]} d5 {[%emt 0:01:34]} 3. exd5 {[%emt 0:00:07]} Qxd5 {[%emt 0:00:13]} 4. Nc3 {[%emt 0:00:10]} Qd8 {[%emt 0:01:07]} 5. d4 {[%emt 0:03:41]} Qxd4 {[%emt 0:05:45]} 6. Nb5 {[%emt 0:04:37][%csl LRc7,LRd4]} Qb6 {[%emt 0:01:55]} (6... Qc5 $11) 7. Bf4 {[%emt 0:05:04]} (7. Qe5 $1 $14 Na6 8. Be3) 7... Na6 $1 $15 {[%emt 0:09:38]} 8. O-O-O {[%emt 0:10:49] Black is slightly better.} Bd7 {[%emt 0:04:04]} 9. Nf3 {[%emt 0:04:34][%cal Od1d7]} f6 {[%emt 0:03:40] [#]} (9... Bxb5 $11 10. Qxb5+ c6) 10. Qc4 $2 {[%emt 0:05:10] White is much more active.} (10. Rxd7 $1 $16 Kxd7 11. Qd2+ Kc8 12. Bc4) 10... e5 $2 {[%emt 0:08:17][%mdl 8192] [#] Loses the game.} (10... O-O-O $15 11. Nd6+ Bxd6 12. Rxd6 Qc5) 11. Rxd7 $1 $18 {[%emt 0:05:18][%mdl 512] White is clearly winning.} Kxd7 {[%emt 0:01:42]} (11... Be7 12. Be3) 12. Qf7+ {[%emt 0:00:09]} Be7 {[%emt 0:14:56] [#]} 13. Bc4 $1 {[%emt 0:03:37]} Nc5 {[%emt 0:16:21]} (13... Rd8 14. Be3) 14. Rd1+ {[%emt 0:00:23] Weighted Error Value: White=0.55/Black=0.48.  Loses game:     	---       	Black=1      Mistake:       	White=2     	Black=2      Inaccurate:     	---       	Black=1      OK:         	White=2     	---        Strong:       	---       	Black=1      Brilliant:      	White=1     	---} 1-0